{"text_format":"1","workbook":"xlsx","n_sheets":1,"sheets":["Quiz"],"not_rendered":{"charts":0,"images":0,"macros":1,"external_links":0,"defined_names":0,"comments":0,"pivot_tables":0},"unopened":[],"bounds":{"document_bytes":16777216,"sheet_cells":100000,"rows_first":2000,"rows_last":500,"rows_between":2000,"halvings":0,"cell_chars":16384,"cell_head_chars":4096},"cells_cut":0,"cells_raw":0,"read":"whole","date_system":"1900"}

{"sheet":"Quiz","index":0,"n_rows":22,"n_cols":4,"rows_kept":22,"cut":false,"hidden":false,"merged":[]}
["Quiz Design Assessment - Football","Answer","Message","Score"]
["1. Who is the current manager of Shanghai SIPG?",null,{"$f":"IF(B2 = \"Andre Villas-Boas\",\"Correct\",\" \")","v":" "},{"$f":"IF(C2 = \"Correct\",1,0)","v":0}]
["2. Which two Italian teams share the San Siro stadium?",null,{"$f":"IF(B3 = \"AC Milan and Inter Milan\",\"Correct\",\" \")","v":" "},{"$f":"IF(C3 = \"Correct\",1,0)","v":0}]
["3. Which of these teams are in knockout stages of the Champions League?",null,{"$f":"IF(B4 = \"AS Monaco\",\"Correct\",\" \")","v":" "},{"$f":"IF(C4 = \"Correct\",1,0)","v":0}]
["4. Which of these teams have won the Champions league?",null,{"$f":"IF(B5 = \"Red Star Belgrade\",\"Correct\",\" \")","v":" "},{"$f":"IF(C5 = \"Correct\",1,0)","v":0}]
["5. What team does Wilfried Zaha play for?",null,{"$f":"IF(B6 = \"Crystal Palace\",\"Correct\",\" \")","v":" "},{"$f":"IF(C6 = \"Correct\",1,0)","v":0}]
["6. Which of these teams didn’t qualify for the 2018 World Cup? ",null,{"$f":"IF(B7 = \"Italy\",\"Correct\",\" \")","v":" "},{"$f":"IF(C7 = \"Correct\",1,0)","v":0}]
["7. Who is the manager of A.F.C. Bournemouth?",null,{"$f":"IF(B8 = \"Eddie Howe\",\"Correct\",\" \")","v":" "},{"$f":"IF(C8 = \"Correct\",1,0)","v":0}]
["8. Who is the most expensive goalkeeper in the world?",null,{"$f":"IF(B9 = \"Ederson\",\"Correct\",\" \")","v":" "},{"$f":"IF(C9 = \"Correct\",1,0)","v":0}]
["9. Which footballer died in June 2017 during training in Beijing?",null,{"$f":"IF(B10 = \"Cheick Tiote\",\"Correct\",\" \")","v":" "},{"$f":"IF(C10 = \"Correct\",1,0)","v":0}]
["10. Which footballer has made the most appearances in the PL?",null,{"$f":"IF(B11 = \"Gareth Barry\",\"Correct\",\" \")","v":" "},{"$f":"IF(C11 = \"Correct\",1,0)","v":0}]
["11. What team does Xavi play for?",null,{"$f":"IF(B12 = \"Al Sadd\",\"Correct\",\" \")","v":" "},{"$f":"IF(C12 = \"Correct\",1,0)","v":0}]
["12. Which player transferred 14 seconds late after the transfer deadline?",null,{"$f":"IF(B13 = \"Adrien Silva\",\"Correct\",\" \")","v":" "},{"$f":"IF(C13 = \"Correct\",1,0)","v":0}]
["13. What year did Leicester City F.C. win the PL?",null,{"$f":"IF(B14 = 2016,\"Correct\",\" \")","v":" "},{"$f":"IF(C14 = \"Correct\",1,0)","v":0}]
["14. Which PL team has the nicknames ‘The Magpies’?",null,{"$f":"IF(B15 = \"Newcastle United\",\"Correct\",\" \")","v":" "},{"$f":"IF(C15 = \"Correct\",1,0)","v":0}]
["15. What is the French first football division called?",null,{"$f":"IF(B16 = \"Ligue 1\",\"Correct\",\" \")","v":" "},{"$f":"IF(C16 = \"Correct\",1,0)","v":0}]
["16. Which player made a world record £195m transfer to PSG?",null,{"$f":"IF(B17 = \"Neymar\",\"Correct\",\" \")","v":" "},{"$f":"IF(C17 = \"Correct\",1,0)","v":0}]
["17. Where is the 2018 World Cup located?",null,{"$f":"IF(B18 = \"Russia\",\"Correct\",\" \")","v":" "},{"$f":"IF(C18 = \"Correct\",1,0)","v":0}]
["18. Who is Germany's all-time top scorer?",null,{"$f":"IF(B19 = \"Miroslav Klose\",\"Correct\",\" \")","v":" "},{"$f":"IF(C19 = \"Correct\",1,0)","v":0}]
["19. What team does N’Golo Kante play for?",null,{"$f":"IF(B20 = \"Chelsea\",\"Correct\",\" \")","v":" "},{"$f":"IF(C20 = \"Correct\",1,0)","v":0}]
["20. What is the name of Toulouse F.C. stadium?",null,{"$f":"IF(B21 = \"Stade Municipal\",\"Correct\",\" \")","v":" "},{"$f":"IF(C21 = \"Correct\",1,0)","v":0}]
["Total",null,null,{"$f":"SUM(D2:D21)","v":0}]